[Event "Skalica Open 2019"]
[Site "Skalica"]
[Date "2019.08.28"]
[Round "5.11"]
[White "Karas, Marek"]
[Black "Kalisky, Vladimir"]
[Result "1-0"]
[ECO "A49"]
[WhiteElo "2233"]
[BlackElo "2179"]
[Annotator "NA"]
[PlyCount "105"]
[EventDate "2019.08.25"]
[EventType "swiss"]
[EventCountry "SVK"]
[SourceTitle "playchess.com"]
[Source "ChessBase"]
[SourceQuality "1"]
[TimeControl "40/5400+30:1800+30"]

1. d4 {[%emt 0:00:00]} Nf6 {[%emt 0:00:00]} 2. Nf3 {[%emt 0:00:00]} g6 {[%emt 0:00:04]} 3. g3 {[%emt 0:00:40]} Bg7 {[%emt 0:00:15]} 4. Bg2 {[%emt 0:00:07]} O-O {[%emt 0:00:17]} 5. O-O {[%emt 0:00:10]} d6 {[%emt 0:00:56]} 6. b3 {[%emt 0:00:17]} e5 {[%emt 0:01:48]} 7. c4 {[%emt 0:00:19]} Nc6 {[%emt 0:06:39]} 8. Bb2 {[%emt 0:08:48]} e4 {[%emt 0:04:26]} 9. Ne1 {[%emt 0:02:31]} Bf5 {[%emt 0:23:54]} 10. Nc3 {[%emt 0:02:47]} Qd7 {[%emt 0:00:36]} 11. Nc2 Rae8 {[%emt 0:07:13]} 12. Re1 {[%emt 0:19:32]} Bh3 {[%emt 0:02:45]} 13. Qd2 {[%emt 0:03:01]} Bxg2 {[%emt 0:05:55]} 14. Kxg2 {[%emt 0:00:21]} Ng4 {[%emt 0:01:52]} 15. Nd5 {[%emt 0:07:16]} f5 {[%emt 0:04:42]} 16. f4 {[%emt 0:03:00]} Ne7 {[%emt 0:04:39]} 17. Nxe7+ {[%emt 0:03:12]} Qxe7 {[%emt 0:01:42]} 18. e3 {[%emt 0:01:45]} g5 {[%emt 0:07:45]} 19. h3 {[%emt 0:03:19]} Nh6 {[%emt 0:03:42]} 20. Qe2 {[%emt 0:04:02]} gxf4 {[%emt 0:06:44]} 21. exf4 {[%emt 0:01:47]} Rf6 {[%emt 0:06:11]} 22. Ne3 {[%emt 0:05:03]} Rg6 {[%emt 0:00:34]} 23. Kf2 {[%emt 0:02:56]} Kh8 {[%emt 0:02:14]} 24. Rg1 {[%emt 0:01:47]} Rg8 {[%emt 0:00:05]} 25. Rab1 {[%emt 0:03:10]} c6 {[%emt 0:03:46]} 26. d5 {[%emt 0:00:40]} c5 {[%emt 0:00:15]} 27. Bxg7+ {[%emt 0:02:00]} R8xg7 {[%emt 0:00:29]} 28. Qb2 {[%emt 0:01:55]} b6 {[%emt 0:00:32]} 29. Qc3 {[%emt 0:02:34]} Kg8 {[%emt 0:00:19]} 30. Rg2 {[%emt 0:00:57]} Kf7 {[%emt 0:00:15]} 31. Rbg1 {[%emt 0:00:24]} Qd8 {[%emt 0:01:31]} 32. Ke2 {[%emt 0:01:01]} Kf8 {[%emt 0:01:34]} 33. a3 {[%emt 0:01:09]} Qd7 {[%emt 0:00:18]} 34. Kd2 {[%emt 0:01:54]} a5 {[%emt 0:00:55]} 35. Kc2 {[%emt 0:00:29]} Qf7 {[%emt 0:00:24]} 36. g4 {[%emt 0:01:01]} fxg4 {[%emt 0:00:43]} 37. hxg4 {[%emt 0:00:36]} Kg8 {[%emt 0:00:59]} 38. f5 {[%emt 0:04:46]} Rg5 {[%emt 0:00:01]} 39. b4 {[%emt 0:00:24]} Qd7 {[%emt 0:01:11]} 40. Kb3 {[%emt 0:02:18]} a4+ {[%emt 0:00:52]} 41. Ka2 {[%emt 0:30:44]} Nf7 {[%emt 0:17:57]} 42. Qf6 {[%emt 0:00:00]} cxb4 {[%emt 0:06:09]} 43. axb4 {[%emt 0:00:00]} Qc7 {[%emt 0:01:49]} 44. Qe6 {[%emt 0:00:00]} h5 45. Qe8+ {[%emt 0:00:00]} Kh7 {[%emt 0:00:21]} 46. Qxe4 {[%emt 0:00:00]} Kh8 {[%emt 0:04:31]} 47. gxh5 {[%emt 0:00:00]} b5 {[%emt 0:02:00]} 48. f6 {[%emt 0:00:00]} Rxg2+ {[%emt 0:00:29]} 49. Rxg2 {[%emt 0:00:00]} Rxg2+ {[%emt 0:00:06]} 50. Qxg2 {[%emt 0:00:00]} Ne5 {[%emt 0:00:14]} 51. Qg7+ {[%emt 0:00:00]} Qxg7 {[%emt 0:00:06]} 52. fxg7+ {[%emt 0:00:00]} Kxg7 {[%emt 0:00:02]} 53. cxb5 {[%emt 0:00:00]} 1-0

[Event "Skalica Open 2019"]
[Site "Skalica"]
[Date "2019.08.28"]
[Round "5.12"]
[White "Hrbek, Stepan"]
[Black "Bochnicka, Vladimir"]
[Result "1/2-1/2"]
[ECO "C54"]
[WhiteElo "2066"]
[BlackElo "2193"]
[Annotator "NA"]
[PlyCount "107"]
[EventDate "2019.08.25"]
[EventType "swiss"]
[EventCountry "SVK"]
[SourceTitle "playchess.com"]
[Source "ChessBase"]
[SourceQuality "1"]
[TimeControl "40/5400+30:1800+30"]

1. e4 {[%emt 0:00:00]} e5 {[%emt 0:00:00]} 2. Bc4 {[%emt 0:00:27]} Bc5 {[%emt 0:00:16]} 3. Nf3 {[%emt 0:00:08]} Nc6 {[%emt 0:00:05]} 4. c3 {[%emt 0:00:03]} Nf6 {[%emt 0:00:07]} 5. d3 {[%emt 0:00:03]} a6 {[%emt 0:00:18]} 6. O-O {[%emt 0:01:07]} Ba7 {[%emt 0:00:45]} 7. Re1 {[%emt 0:03:42]} d6 {[%emt 0:01:21]} 8. Bb3 {[%emt 0:00:04]} h6 {[%emt 0:09:27]} 9. Nbd2 {[%emt 0:05:28]} Ng4 {[%emt 0:03:28]} 10. Re2 {[%emt 0:03:02]} Be6 {[%emt 0:11:12]} 11. Nf1 {[%emt 0:19:39]} Qe7 {[%emt 0:00:57]} 12. d4 Bxb3 {[%emt 0:00:41]} 13. axb3 {[%emt 0:15:42]} O-O-O {[%emt 0:05:43]} 14. d5 {[%emt 0:03:26]} Nb8 {[%emt 0:00:26]} 15. b4 {[%emt 0:00:02]} Bb6 {[%emt 0:03:00]} 16. Qd3 {[%emt 0:06:15]} Rdf8 {[%emt 0:11:26]} 17. h3 {[%emt 0:06:22]} Nf6 {[%emt 0:00:25]} 18. Ng3 {[%emt 0:00:55]} g5 {[%emt 0:03:41]} 19. Nf5 {[%emt 0:03:17]} Qe8 {[%emt 0:02:14]} 20. Nh2 {[%emt 0:00:39]} Rfg8 {[%emt 0:01:17]} 21. g3 {[%emt 0:04:36]} Nh5 {[%emt 0:06:17]} 22. Ng4 {[%emt 0:12:29]} Rg6 {[%emt 0:04:06]} 23. Qf3 {[%emt 0:00:02]} Ng7 {[%emt 0:10:35]} 24. Nxg7 {[%emt 0:01:59]} Rxg7 {[%emt 0:00:02]} 25. Nf6 {[%emt 0:00:33]} Qe7 {[%emt 0:01:34]} 26. Qf5+ {[%emt 0:00:35]} Kd8 {[%emt 0:01:56]} 27. Nh5 {[%emt 0:09:18]} Rg6 {[%emt 0:00:48]} 28. b5 {[%emt 0:02:01]} Qd7 {[%emt 0:01:38]} 29. Qxd7+ {[%emt 0:01:15]} Kxd7 {[%emt 0:00:11]} 30. c4 {[%emt 0:00:08]} Ke7 {[%emt 0:02:46]} 31. g4 {[%emt 0:00:06]} axb5 {[%emt 0:02:44]} 32. cxb5 {[%emt 0:00:04]} Nd7 {[%emt 0:00:50]} 33. b4 {[%emt 0:00:33]} Rgg8 {[%emt 0:03:23]} 34. Be3 {[%emt 0:01:07]} Bxe3 {[%emt 0:06:28]} 35. Rxe3 {[%emt 0:00:04]} Nf6 {[%emt 0:00:26]} 36. Nxf6 {[%emt 0:00:33]} Kxf6 {[%emt 0:00:02]} 37. Rc3 {[%emt 0:00:06]} Ra8 38. Rca3 {[%emt 0:01:55]} Rxa3 {[%emt 0:02:53]} 39. Rxa3 {[%emt 0:00:03]} b6 {[%emt 0:00:36]} 40. Ra7 {[%emt 0:00:27]} Rc8 {[%emt 0:00:09]} 41. Kg2 {[%emt 0:30:04]} Kg6 {[%emt 0:30:35]} 42. Kg3 {[%emt 0:00:04]} Kf6 {[%emt 0:00:09]} 43. Ra1 {[%emt 0:00:31]} Kg6 {[%emt 0:00:29]} 44. f3 {[%emt 0:00:23]} Kf6 {[%emt 0:00:24]} 45. Ra2 {[%emt 0:00:05]} Kg6 {[%emt 0:00:11]} 46. h4 {[%emt 0:00:33]} f6 {[%emt 0:00:07]} 47. Rc2 {[%emt 0:00:45]} Kg7 {[%emt 0:00:15]} 48. hxg5 {[%emt 0:00:42]} hxg5 {[%emt 0:00:07]} 49. Ra2 {[%emt 0:00:20]} Kg6 {[%emt 0:00:09]} 50. Ra7 {[%emt 0:00:12]} Kg7 {[%emt 0:00:27]} 51. Ra1 {[%emt 0:00:06]} Kg6 {[%emt 0:00:30]} 52. Ra7 {[%emt 0:00:04]} Kg7 {[%emt 0:00:06]} 53. Ra1 {[%emt 0:00:03]} Kg6 {[%emt 0:00:07]} 54. Ra7 1/2-1/2

[Event "Skalica Open 2019"]
[Site "Skalica"]
[Date "2019.08.28"]
[Round "5.13"]
[White "Husek, Martin"]
[Black "Jun, Rudolf Jr."]
[Result "1-0"]
[ECO "B33"]
[WhiteElo "2182"]
[BlackElo "2114"]
[Annotator "NA"]
[PlyCount "107"]
[EventDate "2019.08.25"]
[EventType "swiss"]
[EventCountry "SVK"]
[SourceTitle "playchess.com"]
[Source "ChessBase"]
[SourceQuality "1"]
[TimeControl "40/5400+30:1800+30"]

1. e4 {[%emt 0:00:00]} c5 {[%emt 0:00:00]} 2. Nf3 {[%emt 0:00:00]} Nc6 {[%emt 0:00:01]} 3. d4 {[%emt 0:00:15]} cxd4 {[%emt 0:00:09]} 4. Nxd4 {[%emt 0:00:08]} Nf6 {[%emt 0:00:18]} 5. Nc3 {[%emt 0:00:09]} e5 {[%emt 0:01:03]} 6. Ndb5 {[%emt 0:00:10]} d6 {[%emt 0:00:08]} 7. Bg5 {[%emt 0:00:12]} a6 {[%emt 0:00:07]} 8. Na3 {[%emt 0:00:07]} b5 {[%emt 0:00:06]} 9. Nd5 {[%emt 0:00:06]} Be7 {[%emt 0:00:09]} 10. Bxf6 {[%emt 0:00:08]} Bxf6 {[%emt 0:00:11]} 11. c4 {[%emt 0:00:10]} O-O {[%emt 0:01:52]} 12. cxb5 {[%emt 0:01:31]} Nd4 13. b6 {[%emt 0:00:52]} Rb8 {[%emt 0:02:30]} 14. Nc4 {[%emt 0:05:47]} Bb7 {[%emt 0:01:29]} 15. Be2 {[%emt 0:03:58]} Bg5 {[%emt 0:01:30]} 16. O-O {[%emt 0:13:52]} f5 {[%emt 0:02:15]} 17. f3 {[%emt 0:15:37]} Kh8 {[%emt 0:01:48]} 18. a4 {[%emt 0:03:15]} Bxd5 {[%emt 0:06:24]} 19. exd5 {[%emt 0:00:24]} Bf4 {[%emt 0:00:09]} 20. g3 {[%emt 0:11:23]} Qg5 {[%emt 0:01:19]} 21. Kf2 {[%emt 0:00:23]} Rf6 {[%emt 0:06:17]} 22. gxf4 {[%emt 0:02:30]} Qh4+ {[%emt 0:00:15]} 23. Ke3 {[%emt 0:03:46]} Qxf4+ {[%emt 0:00:36]} 24. Kd3 {[%emt 0:00:23]} Rff8 {[%emt 0:01:57]} 25. Qd2 {[%emt 0:06:49]} Nxe2 {[%emt 0:01:08]} 26. Qxe2 {[%emt 0:01:24]} Rfc8 {[%emt 0:00:31]} 27. b3 {[%emt 0:07:35]} Rxb6 {[%emt 0:00:36]} 28. Qc2 {[%emt 0:13:50]} Qd4+ {[%emt 0:05:19]} 29. Ke2 {[%emt 0:00:19]} e4 {[%emt 0:02:59]} 30. Rad1 {[%emt 0:03:36]} exf3+ {[%emt 0:01:18]} 31. Rxf3 {[%emt 0:00:13]} Qh4 {[%emt 0:03:21]} 32. Qxf5 {[%emt 0:02:44]} Rbb8 {[%emt 0:00:58]} 33. Rh3 {[%emt 0:01:15]} Qe7+ {[%emt 0:00:04]} 34. Re3 {[%emt 0:00:58]} Qh4 {[%emt 0:00:03]} 35. Qh3 {[%emt 0:00:42]} Qf4 {[%emt 0:00:32]} 36. Qg3 {[%emt 0:00:39]} Qf5 {[%emt 0:00:47]} 37. Qf3 {[%emt 0:01:21]} Qg6 {[%emt 0:01:00]} 38. Re6 {[%emt 0:01:04]} Re8 {[%emt 0:00:29]} 39. Rxe8+ {[%emt 0:01:04]} Rxe8+ {[%emt 0:00:06]} 40. Kf1 {[%emt 0:00:42]} Kg8 {[%emt 0:01:06]} 41. Qg3 {[%emt 0:01:21]} Rf8+ {[%emt 0:00:40]} 42. Kg1 {[%emt 0:00:13]} Qh5 {[%emt 0:01:24]} 43. Rf1 {[%emt 0:01:32]} Rxf1+ {[%emt 0:00:12]} 44. Kxf1 {[%emt 0:00:08]} Qxd5 {[%emt 0:00:19]} 45. Qxd6 {[%emt 0:00:42]} Qf5+ {[%emt 0:01:19]} 46. Ke2 {[%emt 0:00:31]} Qc2+ {[%emt 0:00:44]} 47. Nd2 {[%emt 0:00:12]} Qc8 {[%emt 0:00:12]} 48. Qd5+ {[%emt 0:00:22]} Kf8 {[%emt 0:00:27]} 49. Ke3 {[%emt 0:01:42]} Qc3+ {[%emt 0:00:22]} 50. Ke4 {[%emt 0:00:25]} Qc2+ {[%emt 0:00:07]} 51. Ke5 {[%emt 0:00:34]} Qc3+ {[%emt 0:00:18]} 52. Qd4 {[%emt 0:00:16]} Qa5+ {[%emt 0:00:54]} 53. Ke6 {[%emt 0:00:10]} Kg8 {[%emt 0:00:22]} 54. Qd5 {[%emt 0:00:51]} 1-0

[Event "Skalica Open 2019"]
[Site "Skalica"]
[Date "2019.08.28"]
[Round "5.15"]
[White "Bilczewski, Kacper"]
[Black "Kantorik, Marian"]
[Result "1/2-1/2"]
[ECO "B02"]
[WhiteElo "2116"]
[BlackElo "2164"]
[Annotator "NA"]
[PlyCount "34"]
[EventDate "2019.08.25"]
[EventType "swiss"]
[EventCountry "SVK"]
[SourceTitle "playchess.com"]
[Source "ChessBase"]
[SourceQuality "1"]
[TimeControl "40/5400+30:1800+30"]

1. e4 {[%emt 0:00:00]} Nf6 {[%emt 0:00:09]} 2. e5 {[%emt 0:00:03]} Nd5 {[%emt 0:00:35]} 3. c4 {[%emt 0:00:04]} Nb6 {[%emt 0:00:06]} 4. c5 {[%emt 0:00:03]} Nd5 {[%emt 0:00:04]} 5. Nc3 {[%emt 0:00:04]} e6 {[%emt 0:00:14]} 6. d4 {[%emt 0:00:04]} d6 {[%emt 0:01:33]} 7. cxd6 {[%emt 0:01:11]} cxd6 {[%emt 0:01:48]} 8. f4 {[%emt 0:26:23]} dxe5 {[%emt 0:13:08]} 9. fxe5 {[%emt 0:00:03]} Qh4+ {[%emt 0:05:33]} 10. Ke2 {[%emt 0:12:23]} Nc6 {[%emt 0:12:48]} 11. Nf3 {[%emt 0:01:20]} Qd8 {[%emt 0:00:31]} 12. Kf2 {[%emt 0:00:51]} Be7 {[%emt 0:00:40]} 13. Bc4 {[%emt 0:02:28]} O-O 14. Re1 {[%emt 0:04:16]} f6 {[%emt 0:14:00]} 15. Kg1 {[%emt 0:01:05]} fxe5 {[%emt 0:00:04]} 16. dxe5 {[%emt 0:01:14]} Bc5+ {[%emt 0:03:44]} 17. Kh1 {[%emt 0:01:23]} Nxc3 {[%emt 0:02:06]} 1/2-1/2

[Event "Skalica Open 2019"]
[Site "Skalica"]
[Date "2019.08.28"]
[Round "5.16"]
[White "Londin, Simon"]
[Black "Gresova, Zuzana"]
[Result "1-0"]
[ECO "B22"]
[WhiteElo "2038"]
[BlackElo "2008"]
[Annotator "NA"]
[PlyCount "63"]
[EventDate "2019.08.25"]
[EventType "swiss"]
[EventCountry "SVK"]
[SourceTitle "playchess.com"]
[Source "ChessBase"]
[SourceQuality "1"]
[TimeControl "40/5400+30:1800+30"]

1. e4 {[%emt 0:00:00]} c5 {[%emt 0:00:00]} 2. c3 {[%emt 0:00:00]} d5 {[%emt 0:00:00]} 3. exd5 {[%emt 0:00:00]} Qxd5 {[%emt 0:00:00]} 4. d4 {[%emt 0:00:00]} Nf6 {[%emt 0:00:09]} 5. Nf3 {[%emt 0:00:00]} Bg4 {[%emt 0:00:34]} 6. Nbd2 {[%emt 0:00:00]} cxd4 {[%emt 0:02:41]} 7. Bc4 {[%emt 0:00:05]} Qd6 {[%emt 0:20:45]} 8. Qb3 {[%emt 0:06:15]} b6 {[%emt 0:02:25]} 9. Bxf7+ {[%emt 0:02:03]} Kd8 {[%emt 0:00:28]} 10. Nc4 {[%emt 0:01:24]} Qc7 {[%emt 0:01:37]} 11. Nxd4 {[%emt 0:00:42]} e5 {[%emt 0:04:14]} 12. Ne6+ {[%emt 0:02:58]} Bxe6 {[%emt 0:00:23]} 13. Bxe6 {[%emt 0:00:01]} Bc5 {[%emt 0:00:48]} 14. O-O {[%emt 0:02:57]} Rf8 {[%emt 0:01:44]} 15. Be3 {[%emt 0:05:51]} Nc6 {[%emt 0:01:15]} 16. Rad1+ {[%emt 0:01:57]} Ke7 {[%emt 0:01:41]} 17. Bxc5+ {[%emt 0:00:09]} bxc5 {[%emt 0:00:13]} 18. Ne3 {[%emt 0:00:09]} Rab8 {[%emt 0:02:54]} 19. Qc4 {[%emt 0:04:44]} Na5 {[%emt 0:07:02]} 20. Nf5+ {[%emt 0:00:20]} Ke8 {[%emt 0:00:30]} 21. Qa4+ {[%emt 0:04:23]} Nc6 {[%emt 0:01:24]} 22. Rfe1 {[%emt 0:05:18]} g6 {[%emt 0:04:42]} 23. Nd6+ {[%emt 0:07:21]} Ke7 {[%emt 0:01:12]} 24. Bd5 {[%emt 0:07:44]} Nxd5 {[%emt 0:03:50]} 25. Rxd5 {[%emt 0:00:13]} Rxb2 {[%emt 0:02:43]} 26. Nc4 {[%emt 0:04:12]} Rfxf2 {[%emt 0:06:02]} 27. Nxb2 {[%emt 0:01:10]} Rxb2 {[%emt 0:00:10]} 28. Rxc5 {[%emt 0:01:29]} Kd6 {[%emt 0:02:20]} 29. Qc4 {[%emt 0:01:17]} Qb6 {[%emt 0:02:25]} 30. Qd5+ {[%emt 0:00:19]} Kc7 {[%emt 0:00:26]} 31. Rxe5 {[%emt 0:01:53]} Rb1+ {[%emt 0:02:04]} 32. Kf2 {[%emt 0:00:19]} 1-0

[Event "Skalica Open 2019"]
[Site "Skalica"]
[Date "2019.08.28"]
[Round "5.17"]
[White "Khmelev, Mikhail"]
[Black "Kuna, Martin"]
[Result "1-0"]
[ECO "B36"]
[WhiteElo "2021"]
[BlackElo "1969"]
[Annotator "NA"]
[PlyCount "87"]
[EventDate "2019.08.25"]
[EventType "swiss"]
[EventCountry "SVK"]
[SourceTitle "playchess.com"]
[Source "ChessBase"]
[SourceQuality "1"]
[TimeControl "40/5400+30:1800+30"]

1. e4 {[%emt 0:00:00]} c5 {[%emt 0:00:00]} 2. Nf3 {[%emt 0:00:00]} Nc6 {[%emt 0:00:08]} 3. d4 cxd4 {[%emt 0:00:29]} 4. Nxd4 {[%emt 0:01:07]} g6 {[%emt 0:00:24]} 5. c4 {[%emt 0:02:31]} Nf6 {[%emt 0:01:35]} 6. Nc3 {[%emt 0:02:22]} d6 {[%emt 0:02:17]} 7. Be2 {[%emt 0:07:58]} Nxd4 {[%emt 0:02:23]} 8. Qxd4 {[%emt 0:00:10]} Bg7 {[%emt 0:00:56]} 9. O-O {[%emt 0:00:08]} O-O {[%emt 0:02:11]} 10. Bg5 {[%emt 0:07:48]} Be6 {[%emt 0:03:12]} 11. Rad1 {[%emt 0:04:07]} Qa5 {[%emt 0:09:46]} 12. Qd2 {[%emt 0:00:26]} Rfc8 {[%emt 0:02:51]} 13. b3 {[%emt 0:02:44]} a6 {[%emt 0:01:45]} 14. Bxf6 {[%emt 0:00:34]} Bxf6 {[%emt 0:00:04]} 15. Nd5 {[%emt 0:00:05]} Qxd2 {[%emt 0:00:12]} 16. Nxf6+ {[%emt 0:00:05]} exf6 {[%emt 0:00:09]} 17. Rxd2 {[%emt 0:00:03]} Rc6 {[%emt 0:02:53]} 18. Rfd1 {[%emt 0:00:07]} Rd8 {[%emt 0:00:36]} 19. f4 {[%emt 0:00:15]} Kf8 {[%emt 0:03:29]} 20. e5 {[%emt 0:00:35]} fxe5 {[%emt 0:00:18]} 21. fxe5 {[%emt 0:00:04]} Rdc8 {[%emt 0:00:54]} 22. exd6 {[%emt 0:00:25]} Bd7 {[%emt 0:00:13]} 23. Bf3 {[%emt 0:07:29]} Rb6 {[%emt 0:01:02]} 24. Rd3 {[%emt 0:05:14]} Bc6 {[%emt 0:03:21]} 25. Kf2 {[%emt 0:02:21]} Rd8 {[%emt 0:00:26]} 26. R1d2 {[%emt 0:03:05]} Bxf3 {[%emt 0:04:35]} 27. Kxf3 {[%emt 0:00:06]} Rc6 {[%emt 0:00:33]} 28. Rd5 {[%emt 0:00:41]} b6 {[%emt 0:00:24]} 29. a4 {[%emt 0:01:03]} a5 {[%emt 0:00:38]} 30. d7 {[%emt 0:00:09]} Ke7 {[%emt 0:01:10]} 31. Re2+ {[%emt 0:03:00]} Kf8 {[%emt 0:04:42]} 32. Kf4 {[%emt 0:00:47]} h6 {[%emt 0:02:02]} 33. g4 {[%emt 0:00:51]} Rc7 {[%emt 0:05:44]} 34. Rd6 {[%emt 0:00:06]} Rb7 {[%emt 0:00:13]} 35. Red2 {[%emt 0:00:25]} Ke7 {[%emt 0:00:29]} 36. Ke5 {[%emt 0:00:05]} Rbb8 {[%emt 0:01:42]} 37. h4 {[%emt 0:01:13]} Rb7 {[%emt 0:00:32]} 38. g5 {[%emt 0:01:10]} h5 {[%emt 0:00:12]} 39. R2d3 {[%emt 0:00:41]} Rbb8 {[%emt 0:04:42]} 40. Rf6 {[%emt 0:02:29]} Rb7 {[%emt 0:02:03]} 41. Rdf3 {[%emt 0:30:08]} Rf8 {[%emt 0:31:42]} 42. Rxf7+ {[%emt 0:00:06]} Rxf7 {[%emt 0:00:48]} 43. Rxf7+ {[%emt 0:00:08]} Kd8 {[%emt 0:00:01]} 44. Kd6 {[%emt 0:00:06]} 1-0

[Event "Skalica Open 2019"]
[Site "Skalica"]
[Date "2019.08.28"]
[Round "5.18"]
[White "Rakovsky, Jakub"]
[Black "Sefcik, Marek"]
[Result "0-1"]
[ECO "B40"]
[WhiteElo "1765"]
[BlackElo "2024"]
[Annotator "NA"]
[PlyCount "82"]
[EventDate "2019.08.25"]
[EventType "swiss"]
[EventCountry "SVK"]
[SourceTitle "playchess.com"]
[Source "ChessBase"]
[SourceQuality "1"]
[TimeControl "40/5400+30:1800+30"]

1. e4 {[%emt 0:01:30]} c5 {[%emt 0:00:00]} 2. Nf3 {[%emt 0:00:12]} e6 {[%emt 0:00:00]} 3. d4 {[%emt 0:00:44]} cxd4 {[%emt 0:00:02]} 4. Nxd4 {[%emt 0:00:37]} Bc5 {[%emt 0:00:40]} 5. Nb3 {[%emt 0:02:01]} Bb6 {[%emt 0:00:20]} 6. Nc3 {[%emt 0:00:58]} Ne7 {[%emt 0:00:38]} 7. Be2 {[%emt 0:02:28]} O-O {[%emt 0:00:36]} 8. O-O {[%emt 0:01:33]} f5 {[%emt 0:00:51]} 9. Bg5 {[%emt 0:02:42]} h6 {[%emt 0:06:46]} 10. Bxe7 {[%emt 0:00:51]} Qxe7 {[%emt 0:00:10]} 11. exf5 {[%emt 0:00:34]} Rxf5 {[%emt 0:00:30]} 12. Bd3 {[%emt 0:01:10]} Rf8 {[%emt 0:02:44]} 13. Qe2 {[%emt 0:00:49]} Qh4 {[%emt 0:09:01]} 14. Nd2 {[%emt 0:07:40]} d5 {[%emt 0:07:47]} 15. Nf3 {[%emt 0:02:47]} Qf4 {[%emt 0:03:14]} 16. Qe5 {[%emt 0:18:47]} Nc6 {[%emt 0:02:06]} 17. Qh5 {[%emt 0:06:03]} Bd7 {[%emt 0:11:22]} 18. Qg6 {[%emt 0:07:41]} Rf6 {[%emt 0:09:07]} 19. Ne2 {[%emt 0:04:46]} Rxg6 {[%emt 0:09:12]} 20. Nxf4 {[%emt 0:01:43]} Rf6 {[%emt 0:10:23]} 21. Ng6 {[%emt 0:01:55]} Be8 {[%emt 0:00:37]} 22. Nge5 {[%emt 0:01:30]} Nxe5 {[%emt 0:01:16]} 23. Nxe5 {[%emt 0:00:02]} Bd4 {[%emt 0:00:28]} 24. Nf3 {[%emt 0:00:47]} Bc5 {[%emt 0:03:25]} 25. b4 {[%emt 0:06:06]} Bb6 {[%emt 0:01:09]} 26. c4 {[%emt 0:02:26]} Bh5 {[%emt 0:01:26]} 27. cxd5 {[%emt 0:09:38]} Bxf3 {[%emt 0:00:42]} 28. gxf3 {[%emt 0:00:02]} exd5 {[%emt 0:00:15]} 29. Be2 {[%emt 0:02:56]} Re8 {[%emt 0:00:27]} 30. Rfe1 {[%emt 0:02:14]} Re5 {[%emt 0:01:12]} 31. Bf1 {[%emt 0:02:41]} Rg5+ {[%emt 0:00:31]} 32. Kh1 {[%emt 0:01:00]} Bxf2 {[%emt 0:00:24]} 33. h4 {[%emt 0:01:19]} Rh5 {[%emt 0:02:40]} 34. Re2 {[%emt 0:01:03]} Rxh4+ {[%emt 0:01:01]} 35. Kg2 {[%emt 0:00:47]} Bb6 {[%emt 0:01:58]} 36. Kg3 {[%emt 0:01:05]} Rxb4 {[%emt 0:04:04]} 37. Rd2 {[%emt 0:02:02]} Rbf4 {[%emt 0:00:40]} 38. Be2 {[%emt 0:00:43]} R4f5 {[%emt 0:00:54]} 39. Rad1 {[%emt 0:00:54]} Rg6+ {[%emt 0:00:36]} 40. Kh4 {[%emt 0:00:13]} Bd8+ {[%emt 0:00:19]} 41. Kh3 {[%emt 0:30:01]} Rh5# {[%emt 0:30:11]} 0-1

[Event "Skalica Open 2019"]
[Site "Skalica"]
[Date "2019.08.28"]
[Round "5.19"]
[White "Kovarikova, Maria"]
[Black "Benes, Miroslav"]
[Result "0-1"]
[ECO "B01"]
[WhiteElo "1854"]
[BlackElo "2107"]
[Annotator "NA"]
[PlyCount "68"]
[EventDate "2019.08.25"]
[EventType "swiss"]
[EventCountry "SVK"]
[SourceTitle "playchess.com"]
[Source "ChessBase"]
[SourceQuality "1"]
[TimeControl "40/5400+30:1800+30"]

1. e4 {[%emt 0:00:00]} d5 {[%emt 0:00:00]} 2. exd5 {[%emt 0:00:00]} Qxd5 {[%emt 0:00:00]} 3. Nc3 {[%emt 0:00:00]} Qa5 {[%emt 0:00:00]} 4. d4 {[%emt 0:00:00]} c6 {[%emt 0:00:00]} 5. Bc4 {[%emt 0:00:36]} Bf5 {[%emt 0:00:08]} 6. Nf3 {[%emt 0:00:55]} e6 {[%emt 0:00:33]} 7. Bd2 {[%emt 0:02:15]} Nd7 {[%emt 0:01:34]} 8. O-O {[%emt 0:01:17]} Ngf6 {[%emt 0:00:22]} 9. Re1 {[%emt 0:03:56]} Qc7 {[%emt 0:01:35]} 10. Nh4 {[%emt 0:37:58]} Bg6 {[%emt 0:03:02]} 11. f4 {[%emt 0:07:38]} O-O-O {[%emt 0:08:28]} 12. Ne2 {[%emt 0:09:03]} Bh5 {[%emt 0:08:49]} 13. c3 {[%emt 0:07:10]} Be7 {[%emt 0:01:41]} 14. Rf1 {[%emt 0:01:38]} h6 {[%emt 0:05:46]} 15. Nf3 {[%emt 0:11:50]} g5 {[%emt 0:02:03]} 16. b4 {[%emt 0:06:23]} Ne4 {[%emt 0:08:08]} 17. b5 {[%emt 0:02:40]} c5 {[%emt 0:01:57]} 18. a4 {[%emt 0:01:36]} gxf4 {[%emt 0:12:48]} 19. a5 {[%emt 0:01:32]} Bxf3 {[%emt 0:05:43]} 20. Rxf3 {[%emt 0:00:12]} Nxd2 {[%emt 0:00:17]} 21. Qxd2 {[%emt 0:00:17]} Ne5 {[%emt 0:00:13]} 22. b6 {[%emt 0:02:26]} Nxf3+ {[%emt 0:03:08]} 23. gxf3 {[%emt 0:00:06]} Rhg8+ {[%emt 0:00:22]} 24. Kh1 {[%emt 0:00:40]} axb6 {[%emt 0:09:40]} 25. a6 {[%emt 0:00:05]} bxa6 {[%emt 0:06:00]} 26. Bxa6+ {[%emt 0:00:05]} Kb8 {[%emt 0:00:11]} 27. Bd3 {[%emt 0:02:11]} f5 {[%emt 0:00:45]} 28. Qa2 {[%emt 0:00:36]} Qb7 {[%emt 0:00:10]} 29. Ng1 {[%emt 0:00:06]} Rg6 {[%emt 0:01:29]} 30. Qe2 {[%emt 0:00:32]} Rdg8 {[%emt 0:02:10]} 31. Nh3 {[%emt 0:01:07]} Bd6 {[%emt 0:02:06]} 32. dxc5 {[%emt 0:00:07]} Bxc5 {[%emt 0:00:23]} 33. Ba6 {[%emt 0:00:50]} Qg7 {[%emt 0:02:20]} 34. Bb5 {[%emt 0:00:34]} Rg1+ {[%emt 0:00:36]} 0-1